[Event "Late-Titled-Tuesday-Blitz-June-18-2024"]
[Site "Chess.com"]
[Date "2024.06.18"]
[Round "8"]
[White "ManMish2"]
[Black "Hakiki_satranc"]
[Result "1-0"]
[WhiteElo "2629"]
[BlackElo "2428"]
[TimeControl "180+1"]
[EndTime "15:26:22 PDT"]
[Termination "ManMish2 won by resignation"]

1. e4 {[%clk 0:03:00.9]} 1... a6 {[%clk 0:03:00.9]} 2. d4 {[%clk 0:03:00]} 2...
d5 {[%clk 0:03:01.5]} 3. exd5 {[%clk 0:02:58.9]} 3... Qxd5 {[%clk 0:03:02.4]} 4.
Nc3 {[%clk 0:02:58.3]} 4... Qd8 {[%clk 0:03:03]} 5. Nf3 {[%clk 0:02:58.2]} 5...
Nf6 {[%clk 0:03:03.6]} 6. a4 {[%clk 0:02:57.6]} 6... g6 {[%clk 0:03:03.4]} 7.
Bc4 {[%clk 0:02:56.8]} 7... Bg7 {[%clk 0:03:03.7]} 8. O-O {[%clk 0:02:56.9]}
8... O-O {[%clk 0:03:03.9]} 9. Bf4 {[%clk 0:02:56.6]} 9... Nc6 {[%clk
0:03:03.9]} 10. d5 {[%clk 0:02:53.2]} 10... Nb4 {[%clk 0:02:59.4]} 11. Qd2
{[%clk 0:02:50.1]} 11... b6 {[%clk 0:02:49]} 12. Rad1 {[%clk 0:02:46.6]} 12...
Bb7 {[%clk 0:02:48.1]} 13. Rfe1 {[%clk 0:02:43.6]} 13... Qd7 {[%clk 0:02:09.8]}
14. Bh6 {[%clk 0:02:34.4]} 14... Rad8 {[%clk 0:02:00.2]} 15. Bxg7 {[%clk
0:02:33.2]} 15... Kxg7 {[%clk 0:02:01.1]} 16. Re5 {[%clk 0:01:50.7]} 16... e6
{[%clk 0:01:48.5]} 17. dxe6 {[%clk 0:01:39.4]} 17... Qxd2 {[%clk 0:01:49.4]} 18.
Rxd2 {[%clk 0:01:30.4]} 18... Bxf3 {[%clk 0:01:38.2]} 19. Rxd8 {[%clk
0:01:28.1]} 19... Rxd8 {[%clk 0:01:39.1]} 20. gxf3 {[%clk 0:01:26.6]} 20... fxe6
{[%clk 0:01:24.7]} 21. Rxe6 {[%clk 0:01:27.5]} 21... Nxc2 {[%clk 0:01:18.2]} 22.
Re7+ {[%clk 0:01:23]} 22... Kh6 {[%clk 0:01:18.7]} 23. Rxc7 {[%clk 0:01:22.9]}
23... Rd1+ {[%clk 0:01:14.5]} 24. Nxd1 {[%clk 0:01:21.9]} 1-0

[Event "Late-Titled-Tuesday-Blitz-June-18-2024"]
[Site "Chess.com"]
[Date "2024.06.18"]
[Round "8"]
[White "ozates"]
[Black "ChessSG1"]
[Result "0-1"]
[WhiteElo "2614"]
[BlackElo "2507"]
[TimeControl "180+1"]
[EndTime "15:26:24 PDT"]
[Termination "ChessSG1 won by resignation"]

1. e4 {[%clk 0:03:00.9]} 1... c5 {[%clk 0:02:58.4]} 2. Nf3 {[%clk 0:03:00.2]}
2... g6 {[%clk 0:02:58.7]} 3. d4 {[%clk 0:02:54.9]} 3... cxd4 {[%clk 0:02:59.6]}
4. Nxd4 {[%clk 0:02:55.4]} 4... Nc6 {[%clk 0:02:59.6]} 5. c4 {[%clk 0:02:55.5]}
5... Nf6 {[%clk 0:02:59.7]} 6. Nc3 {[%clk 0:02:55.2]} 6... d6 {[%clk 0:03:00.3]}
7. Be2 {[%clk 0:02:54.8]} 7... Nxd4 {[%clk 0:03:00.6]} 8. Qxd4 {[%clk
0:02:54.6]} 8... Bg7 {[%clk 0:03:01.2]} 9. Qd2 {[%clk 0:02:52.7]} 9... O-O
{[%clk 0:02:59.9]} 10. O-O {[%clk 0:02:53.3]} 10... a5 {[%clk 0:02:56.1]} 11.
Rb1 {[%clk 0:02:52]} 11... a4 {[%clk 0:02:56]} 12. b4 {[%clk 0:02:51.9]} 12...
axb3 {[%clk 0:02:48]} 13. axb3 {[%clk 0:02:52.8]} 13... Bd7 {[%clk 0:02:40.5]}
14. Bb2 {[%clk 0:02:52.4]} 14... Bc6 {[%clk 0:02:40.6]} 15. f3 {[%clk
0:02:51.1]} 15... Qb6+ {[%clk 0:02:35.6]} 16. Kh1 {[%clk 0:02:50.7]} 16... Nd7
{[%clk 0:02:34.9]} 17. Nd5 {[%clk 0:02:41.6]} 17... Bxd5 {[%clk 0:02:33.3]} 18.
Bxg7 {[%clk 0:02:42.2]} 18... Kxg7 {[%clk 0:02:30.9]} 19. exd5 {[%clk
0:02:42.7]} 19... Kg8 {[%clk 0:02:04.7]} 20. f4 {[%clk 0:02:41]} 20... Ra3
{[%clk 0:02:03.5]} 21. Rf3 {[%clk 0:02:13.4]} 21... Rfa8 {[%clk 0:02:02.1]} 22.
f5 {[%clk 0:02:12]} 22... Ne5 {[%clk 0:01:57.1]} 23. Rg3 {[%clk 0:01:59.6]}
23... Ra1 {[%clk 0:01:53]} 24. Qc1 {[%clk 0:01:59.7]} 24... Rxb1 {[%clk
0:01:44.4]} 25. Qxb1 {[%clk 0:02:00.6]} 25... Qf2 {[%clk 0:01:43.6]} 26. fxg6
{[%clk 0:01:55]} 26... Qxe2 {[%clk 0:01:26.2]} 27. gxf7+ {[%clk 0:01:54.2]}
27... Kh8 {[%clk 0:01:26.9]} 28. h4 {[%clk 0:01:48.6]} 28... Qf2 {[%clk
0:01:20.7]} 29. Kh2 {[%clk 0:01:36.3]} 29... Qxf7 {[%clk 0:01:19.8]} 30. Qb2
{[%clk 0:01:34.6]} 30... Qf6 {[%clk 0:01:19.4]} 31. Qc3 {[%clk 0:01:32.9]} 31...
Qxh4+ {[%clk 0:01:18.8]} 32. Rh3 {[%clk 0:01:33.4]} 32... Qf4+ {[%clk
0:01:15.6]} 0-1

[Event "Late-Titled-Tuesday-Blitz-June-18-2024"]
[Site "Chess.com"]
[Date "2024.06.18"]
[Round "8"]
[White "ClauAmura"]
[Black "yobdc"]
[Result "0-1"]
[WhiteElo "2381"]
[BlackElo "2571"]
[TimeControl "180+1"]
[EndTime "15:26:26 PDT"]
[Termination "yobdc won by resignation"]

1. d4 {[%clk 0:02:54.6]} 1... e6 {[%clk 0:03:00.4]} 2. c4 {[%clk 0:02:48.4]}
2... f5 {[%clk 0:03:00.7]} 3. g3 {[%clk 0:02:46.7]} 3... Nf6 {[%clk 0:03:00.1]}
4. Bg2 {[%clk 0:02:47.4]} 4... d5 {[%clk 0:03:00.3]} 5. Nh3 {[%clk 0:02:47.8]}
5... c6 {[%clk 0:02:56]} 6. b3 {[%clk 0:02:46.9]} 6... Bd6 {[%clk 0:02:54.5]} 7.
O-O {[%clk 0:02:45.6]} 7... O-O {[%clk 0:02:53.5]} 8. Ba3 {[%clk 0:02:45.7]}
8... Bxa3 {[%clk 0:02:48.8]} 9. Nxa3 {[%clk 0:02:45]} 9... Qe7 {[%clk
0:02:41.1]} 10. Nc2 {[%clk 0:02:44.8]} 10... Nbd7 {[%clk 0:02:38.7]} 11. Nf4
{[%clk 0:02:40.7]} 11... a5 {[%clk 0:02:32.9]} 12. Nd3 {[%clk 0:02:40.3]} 12...
b6 {[%clk 0:02:30.2]} 13. Nce1 {[%clk 0:02:40.1]} 13... Ba6 {[%clk 0:02:29.1]}
14. Qc2 {[%clk 0:02:39.9]} 14... Rac8 {[%clk 0:02:28.3]} 15. Nf3 {[%clk
0:02:39.8]} 15... c5 {[%clk 0:02:27.2]} 16. dxc5 {[%clk 0:02:31.1]} 16... Nxc5
{[%clk 0:02:27.4]} 17. Nde5 {[%clk 0:02:28.4]} 17... Nce4 {[%clk 0:02:14.3]} 18.
Qb2 {[%clk 0:02:21.2]} 18... dxc4 {[%clk 0:02:10.1]} 19. bxc4 {[%clk 0:02:22.1]}
19... Qc7 {[%clk 0:01:53]} 20. Rac1 {[%clk 0:02:19.9]} 20... Rfd8 {[%clk
0:01:31.6]} 21. h4 {[%clk 0:02:18.8]} 21... Nc5 {[%clk 0:01:22]} 22. Rc2 {[%clk
0:02:17.5]} 22... Bb7 {[%clk 0:01:18.4]} 23. Rb1 {[%clk 0:02:06.5]} 23... Be4
{[%clk 0:01:17.4]} 24. Rbc1 {[%clk 0:01:55.4]} 24... Bxc2 {[%clk 0:01:17.1]} 25.
Qxc2 {[%clk 0:01:55.6]} 25... Nfd7 {[%clk 0:01:15.1]} 26. Nd3 {[%clk 0:01:49.1]}
26... Nxd3 {[%clk 0:01:12.7]} 27. exd3 {[%clk 0:01:50]} 27... Nc5 {[%clk
0:01:12.6]} 28. d4 {[%clk 0:01:49.1]} 28... Ne4 {[%clk 0:01:11]} 29. Ne5 {[%clk
0:01:47.6]} 29... Rxd4 {[%clk 0:01:08.6]} 30. Nd3 {[%clk 0:01:42.1]} 30... Rxc4
{[%clk 0:01:06]} 0-1

[Event "Late-Titled-Tuesday-Blitz-June-18-2024"]
[Site "Chess.com"]
[Date "2024.06.18"]
[Round "8"]
[White "Boudicca64"]
[Black "egnfanclub"]
[Result "0-1"]
[WhiteElo "1905"]
[BlackElo "2332"]
[TimeControl "180+1"]
[EndTime "15:26:37 PDT"]
[Termination "egnfanclub won by checkmate"]

1. e4 {[%clk 0:03:00.9]} 1... e5 {[%clk 0:02:59.5]} 2. d4 {[%clk 0:02:59]} 2...
exd4 {[%clk 0:02:59.2]} 3. Qxd4 {[%clk 0:02:58]} 3... Nc6 {[%clk 0:02:59.5]} 4.
Qe3 {[%clk 0:02:57.5]} 4... g6 {[%clk 0:03:00]} 5. Nc3 {[%clk 0:02:56.1]} 5...
Bg7 {[%clk 0:03:00.4]} 6. Bd2 {[%clk 0:02:56]} 6... Nf6 {[%clk 0:03:00.8]} 7.
O-O-O {[%clk 0:02:54.6]} 7... O-O {[%clk 0:03:00.2]} 8. Be2 {[%clk 0:02:54]}
8... Re8 {[%clk 0:02:56.5]} 9. h4 {[%clk 0:02:46.3]} 9... d5 {[%clk 0:02:55.3]}
10. Qg3 {[%clk 0:02:39.1]} 10... Nxe4 {[%clk 0:02:48.1]} 11. Nxe4 {[%clk
0:02:37.4]} 11... Rxe4 {[%clk 0:02:49]} 12. h5 {[%clk 0:02:36.9]} 12... Qf6
{[%clk 0:02:38.4]} 13. Bc3 {[%clk 0:02:10.8]} 13... d4 {[%clk 0:02:28.9]} 14.
Bf3 {[%clk 0:02:08.9]} 14... dxc3 {[%clk 0:01:31.3]} 15. Bxe4 {[%clk 0:02:06.2]}
15... cxb2+ {[%clk 0:01:32.2]} 16. Kb1 {[%clk 0:02:05.2]} 16... Be6 {[%clk
0:01:31.1]} 17. hxg6 {[%clk 0:01:56.2]} 17... fxg6 {[%clk 0:01:29.6]} 18. Bd5
{[%clk 0:01:52.5]} 18... Bxd5 {[%clk 0:01:18.3]} 19. Rxd5 {[%clk 0:01:50.7]}
19... Qe6 {[%clk 0:01:11.9]} 20. Rd1 {[%clk 0:01:41.8]} 20... Na5 {[%clk
0:00:58.4]} 21. Qh3 {[%clk 0:01:33.8]} 21... Qxh3 {[%clk 0:00:51.6]} 22. Nxh3
{[%clk 0:01:31.9]} 22... Nc4 {[%clk 0:00:52.5]} 23. Nf4 {[%clk 0:01:21.6]} 23...
Na3# {[%clk 0:00:52.4]} 0-1

[Event "Late-Titled-Tuesday-Blitz-June-18-2024"]
[Site "Chess.com"]
[Date "2024.06.18"]
[Round "8"]
[White "A4RookA3"]
[Black "rhungaski"]
[Result "0-1"]
[WhiteElo "2441"]
[BlackElo "2612"]
[TimeControl "180+1"]
[EndTime "15:26:39 PDT"]
[Termination "rhungaski won by resignation"]

1. d4 {[%clk 0:03:00.9]} 1... d5 {[%clk 0:02:57.8]} 2. Bf4 {[%clk 0:03:00.7]}
2... Nf6 {[%clk 0:02:57]} 3. e3 {[%clk 0:02:59.9]} 3... c5 {[%clk 0:02:57.6]} 4.
Nf3 {[%clk 0:03:00.1]} 4... Nc6 {[%clk 0:02:57.1]} 5. Nbd2 {[%clk 0:03:00.4]}
5... e6 {[%clk 0:02:55.3]} 6. c3 {[%clk 0:02:59.9]} 6... Nh5 {[%clk 0:02:54.5]}
7. Bg5 {[%clk 0:02:59.3]} 7... Qb6 {[%clk 0:02:54.6]} 8. Rb1 {[%clk 0:02:57.9]}
8... h6 {[%clk 0:02:54.2]} 9. Bh4 {[%clk 0:02:56.5]} 9... g5 {[%clk 0:02:54.1]}
10. Ne5 {[%clk 0:02:56.3]} 10... gxh4 {[%clk 0:02:37.4]} 11. Qxh5 {[%clk
0:02:53]} 11... Nxe5 {[%clk 0:02:33.4]} 12. dxe5 {[%clk 0:02:37.2]} 12... Be7
{[%clk 0:02:31.6]} 13. Nf3 {[%clk 0:02:33.3]} 13... Bd7 {[%clk 0:02:24.2]} 14.
Nxh4 {[%clk 0:02:23.7]} 14... O-O-O {[%clk 0:02:24.1]} 15. Nf3 {[%clk
0:02:17.6]} 15... Be8 {[%clk 0:02:20.4]} 16. Qg4 {[%clk 0:02:12.9]} 16... Qc7
{[%clk 0:01:38.6]} 17. Bd3 {[%clk 0:01:59.1]} 17... Bc6 {[%clk 0:01:35.1]} 18.
Qf4 {[%clk 0:01:53.1]} 18... Rdf8 {[%clk 0:01:32.5]} 19. e4 {[%clk 0:01:15.4]}
19... f6 {[%clk 0:01:24.3]} 20. exd5 {[%clk 0:01:13.6]} 20... Bxd5 {[%clk
0:01:21.5]} 21. Bc4 {[%clk 0:00:56.4]} 21... fxe5 {[%clk 0:01:20.1]} 22. Qxe5
{[%clk 0:00:55.5]} 22... Bxc4 {[%clk 0:01:18.6]} 0-1

[Event "Late-Titled-Tuesday-Blitz-June-18-2024"]
[Site "Chess.com"]
[Date "2024.06.18"]
[Round "8"]
[White "dosto07"]
[Black "scrambleyourbrain"]
[Result "1-0"]
[WhiteElo "2598"]
[BlackElo "2393"]
[TimeControl "180+1"]
[EndTime "15:26:51 PDT"]
[Termination "dosto07 won by resignation"]

1. e4 {[%clk 0:03:00.9]} 1... c5 {[%clk 0:02:58.8]} 2. Nf3 {[%clk 0:03:01.1]}
2... d6 {[%clk 0:02:58.7]} 3. Bb5+ {[%clk 0:02:59.1]} 3... Nd7 {[%clk 0:02:58]}
4. d4 {[%clk 0:02:58.7]} 4... cxd4 {[%clk 0:02:57]} 5. Qxd4 {[%clk 0:02:59.6]}
5... a6 {[%clk 0:02:57.3]} 6. Bxd7+ {[%clk 0:03:00.1]} 6... Bxd7 {[%clk
0:02:57.8]} 7. Nc3 {[%clk 0:03:00.9]} 7... Nf6 {[%clk 0:02:58.1]} 8. Bg5 {[%clk
0:03:00.3]} 8... e5 {[%clk 0:02:58]} 9. Qd3 {[%clk 0:03:00.1]} 9... Be7 {[%clk
0:02:57.1]} 10. Bxf6 {[%clk 0:03:00.1]} 10... Bxf6 {[%clk 0:02:55.9]} 11. O-O-O
{[%clk 0:03:00.6]} 11... Be7 {[%clk 0:02:55.1]} 12. Nd5 {[%clk 0:03:00.2]} 12...
Bc6 {[%clk 0:02:49.9]} 13. Rhe1 {[%clk 0:02:56.2]} 13... Bxd5 {[%clk 0:02:50]}
14. Qxd5 {[%clk 0:02:55.7]} 14... O-O {[%clk 0:02:49.8]} 15. Kb1 {[%clk
0:02:52.1]} 15... Qb6 {[%clk 0:02:49.7]} 16. Re2 {[%clk 0:02:45.5]} 16... Rac8
{[%clk 0:02:49.2]} 17. Qb3 {[%clk 0:02:43.9]} 17... Qc6 {[%clk 0:02:47.1]} 18.
Ne1 {[%clk 0:02:36.5]} 18... b5 {[%clk 0:02:46.8]} 19. Nd3 {[%clk 0:02:36]}
19... a5 {[%clk 0:02:46.9]} 20. a3 {[%clk 0:02:27.1]} 20... Qb6 {[%clk
0:02:43.6]} 21. a4 {[%clk 0:02:16.1]} 21... b4 {[%clk 0:02:41.2]} 22. Nc1 {[%clk
0:02:01.5]} 22... Rc6 {[%clk 0:02:37.2]} 23. Rd5 {[%clk 0:01:54.2]} 23... Rfc8
{[%clk 0:02:36.6]} 24. g3 {[%clk 0:01:46.5]} 24... Rc4 {[%clk 0:02:32.2]} 25. h4
{[%clk 0:01:40.8]} 25... h6 {[%clk 0:02:31]} 26. Qd3 {[%clk 0:01:32.4]} 26...
R4c5 {[%clk 0:02:19.1]} 27. Nb3 {[%clk 0:01:29.3]} 27... Rxd5 {[%clk 0:02:19.2]}
28. Qxd5 {[%clk 0:01:29.7]} 28... Bd8 {[%clk 0:02:15.9]} 29. Rd2 {[%clk
0:01:28.4]} 29... Bc7 {[%clk 0:02:12.7]} 30. Qb5 {[%clk 0:01:23.6]} 30... Qxb5
{[%clk 0:02:07.8]} 31. axb5 {[%clk 0:01:23.5]} 31... Rb8 {[%clk 0:02:08.5]} 32.
Rd5 {[%clk 0:01:22.8]} 32... Kf8 {[%clk 0:02:07.4]} 33. Nd2 {[%clk 0:01:18.1]}
33... Ke7 {[%clk 0:02:06.7]} 34. Nc4 {[%clk 0:01:18.3]} 34... Ke6 {[%clk
0:02:05]} 35. g4 {[%clk 0:01:15.5]} 35... Ke7 {[%clk 0:01:57.1]} 36. b3 {[%clk
0:01:13.1]} 36... g5 {[%clk 0:01:52.9]} 37. h5 {[%clk 0:01:12.5]} 37... Rb7
{[%clk 0:01:51.6]} 38. b6 {[%clk 0:01:09.1]} 38... Bxb6 {[%clk 0:01:51.3]} 39.
Rb5 {[%clk 0:01:09]} 39... Kd7 {[%clk 0:01:33.3]} 40. Rxb6 {[%clk 0:01:08.4]}
40... Rxb6 {[%clk 0:01:33.8]} 41. Nxb6+ {[%clk 0:01:08.6]} 41... Kc6 {[%clk
0:01:34.5]} 42. Nc4 {[%clk 0:01:08.7]} 42... d5 {[%clk 0:01:35.1]} 43. Nxe5+
{[%clk 0:01:04.6]} 1-0

[Event "Late-Titled-Tuesday-Blitz-June-18-2024"]
[Site "Chess.com"]
[Date "2024.06.18"]
[Round "8"]
[White "LidongW"]
[Black "LUISMIGUELOV"]
[Result "0-1"]
[WhiteElo "2333"]
[BlackElo "2211"]
[TimeControl "180+1"]
[EndTime "15:26:57 PDT"]
[Termination "LUISMIGUELOV won by resignation"]

1. e4 {[%clk 0:03:00.9]} 1... e5 {[%clk 0:02:55.6]} 2. Nf3 {[%clk 0:03:00.7]}
2... Nc6 {[%clk 0:02:55.8]} 3. Bc4 {[%clk 0:03:01.1]} 3... Nf6 {[%clk
0:02:54.8]} 4. d3 {[%clk 0:03:01.4]} 4... Bc5 {[%clk 0:02:52.7]} 5. c3 {[%clk
0:03:01.4]} 5... d6 {[%clk 0:02:51.2]} 6. h3 {[%clk 0:03:01.6]} 6... h6 {[%clk
0:02:49]} 7. b4 {[%clk 0:03:01]} 7... Bb6 {[%clk 0:02:47.9]} 8. a4 {[%clk
0:03:01.6]} 8... a6 {[%clk 0:02:46.1]} 9. Be3 {[%clk 0:03:01.6]} 9... g5 {[%clk
0:02:39.9]} 10. a5 {[%clk 0:02:48.7]} 10... Bxe3 {[%clk 0:02:38]} 11. fxe3
{[%clk 0:02:49.6]} 11... g4 {[%clk 0:02:37.8]} 12. hxg4 {[%clk 0:02:38.8]} 12...
Nxg4 {[%clk 0:02:36.9]} 13. Qe2 {[%clk 0:02:38.2]} 13... Be6 {[%clk 0:02:29.4]}
14. Nbd2 {[%clk 0:02:37.3]} 14... Bxc4 {[%clk 0:02:26.4]} 15. Nxc4 {[%clk
0:02:35.3]} 15... Qd7 {[%clk 0:02:26.7]} 16. Nh4 {[%clk 0:02:30.7]} 16... h5
{[%clk 0:02:19.6]} 17. Nf5 {[%clk 0:02:28.9]} 17... O-O-O {[%clk 0:02:19.2]} 18.
Rf1 {[%clk 0:02:24.5]} 18... f6 {[%clk 0:02:15.2]} 19. O-O-O {[%clk 0:02:14.6]}
19... d5 {[%clk 0:02:15.1]} 20. exd5 {[%clk 0:02:13.5]} 20... Qxd5 {[%clk
0:02:15]} 21. e4 {[%clk 0:02:14.1]} 21... Qe6 {[%clk 0:02:05.5]} 22. Rf3 {[%clk
0:02:02.1]} 22... Na7 {[%clk 0:02:01.7]} 23. Rh3 {[%clk 0:01:55.3]} 23... Nb5
{[%clk 0:01:59.1]} 24. Kb2 {[%clk 0:01:54.9]} 24... Kb8 {[%clk 0:01:45.5]} 25.
Rdh1 {[%clk 0:01:53.4]} 25... Qf7 {[%clk 0:01:30.5]} 26. Nce3 {[%clk 0:01:31.6]}
26... Nxe3 {[%clk 0:01:26.4]} 27. Nxe3 {[%clk 0:01:32.5]} 27... Qa2+ {[%clk
0:01:19.4]} 28. Kxa2 {[%clk 0:01:32.2]} 28... Nxc3+ {[%clk 0:01:19.9]} 29. Kb3
{[%clk 0:01:32.3]} 29... Nxe2 {[%clk 0:01:20.4]} 30. Kc4 {[%clk 0:01:32.9]}
30... Nf4 {[%clk 0:01:17]} 31. Rh4 {[%clk 0:01:30.3]} 31... Rd4+ {[%clk
0:01:14.8]} 32. Kb3 {[%clk 0:01:19.1]} 32... Rxd3+ {[%clk 0:01:14.6]} 33. Ka4
{[%clk 0:01:16.7]} 33... Rxe3 {[%clk 0:01:15]} 34. Rd1 {[%clk 0:01:14.5]} 34...
Kc8 {[%clk 0:01:12.8]} 35. g4 {[%clk 0:01:13.3]} 35... Rg3 {[%clk 0:01:09.6]}
36. gxh5 {[%clk 0:01:11.9]} 36... Rxh5 {[%clk 0:01:09.2]} 0-1

[Event "Late-Titled-Tuesday-Blitz-June-18-2024"]
[Site "Chess.com"]
[Date "2024.06.18"]
[Round "8"]
[White "Jarming"]
[Black "MathiasWomacka"]
[Result "0-1"]
[WhiteElo "2642"]
[BlackElo "2535"]
[TimeControl "180+1"]
[EndTime "15:27:00 PDT"]
[Termination "MathiasWomacka won by checkmate"]

1. d4 {[%clk 0:03:00.9]} 1... Nf6 {[%clk 0:02:58.9]} 2. c4 {[%clk 0:03:00]} 2...
e6 {[%clk 0:02:58.4]} 3. Nf3 {[%clk 0:02:58.8]} 3... Bb4+ {[%clk 0:02:57.7]} 4.
Bd2 {[%clk 0:02:56.7]} 4... Qe7 {[%clk 0:02:57.8]} 5. g3 {[%clk 0:02:54.4]} 5...
Bxd2+ {[%clk 0:02:56.3]} 6. Qxd2 {[%clk 0:02:53.9]} 6... Nc6 {[%clk 0:02:54.8]}
7. Nc3 {[%clk 0:02:53.5]} 7... d5 {[%clk 0:02:53.5]} 8. Bg2 {[%clk 0:02:52]}
8... dxc4 {[%clk 0:02:52.5]} 9. Ne5 {[%clk 0:02:51.8]} 9... Nxe5 {[%clk
0:02:51.1]} 10. dxe5 {[%clk 0:02:52.7]} 10... Nd7 {[%clk 0:02:51]} 11. f4 {[%clk
0:02:46.9]} 11... O-O {[%clk 0:02:46.5]} 12. Qd4 {[%clk 0:02:45.8]} 12... Nb6
{[%clk 0:02:45.6]} 13. O-O-O {[%clk 0:02:43.7]} 13... Bd7 {[%clk 0:02:28.6]} 14.
Bxb7 {[%clk 0:02:37.3]} 14... Rab8 {[%clk 0:02:28.7]} 15. Ba6 {[%clk 0:02:31.4]}
15... Rfd8 {[%clk 0:02:16]} 16. Qe3 {[%clk 0:02:21.7]} 16... Qb4 {[%clk
0:02:14.1]} 17. Rd2 {[%clk 0:01:57.7]} 17... Qa5 {[%clk 0:02:10.7]} 18. Bb5
{[%clk 0:01:50.6]} 18... Bxb5 {[%clk 0:02:08]} 19. Rxd8+ {[%clk 0:01:51.5]}
19... Rxd8 {[%clk 0:02:06.9]} 20. Qc5 {[%clk 0:01:52.4]} 20... c6 {[%clk
0:01:54.9]} 21. Ne4 {[%clk 0:01:40]} 21... Na4 {[%clk 0:01:45.9]} 22. Qe7 {[%clk
0:01:37.4]} 22... c3 {[%clk 0:01:37]} 23. b4 {[%clk 0:01:28.6]} 23... Qb6 {[%clk
0:01:34.2]} 24. Kc2 {[%clk 0:01:17.7]} 24... Bxe2 {[%clk 0:01:26.6]} 25. Nd6
{[%clk 0:01:06.5]} 25... Rf8 {[%clk 0:01:22.7]} 26. f5 {[%clk 0:01:06.3]} 26...
Qe3 {[%clk 0:01:17.2]} 27. fxe6 {[%clk 0:00:59.8]} 27... Qd2+ {[%clk 0:01:08.2]}
28. Kb3 {[%clk 0:01:00.2]} 28... Qb2+ {[%clk 0:01:06]} 29. Kxa4 {[%clk
0:00:57.4]} 29... Qxa2# {[%clk 0:01:06.1]} 0-1

[Event "Late-Titled-Tuesday-Blitz-June-18-2024"]
[Site "Chess.com"]
[Date "2024.06.18"]
[Round "8"]
[White "MarceloPlaya"]
[Black "Arteler"]
[Result "1-0"]
[WhiteElo "2422"]
[BlackElo "2228"]
[TimeControl "180+1"]
[EndTime "15:27:01 PDT"]
[Termination "MarceloPlaya won by resignation"]

1. e4 {[%clk 0:03:00.9]} 1... e6 {[%clk 0:02:57.1]} 2. d4 {[%clk 0:03:00.1]}
2... d5 {[%clk 0:02:57.6]} 3. Nc3 {[%clk 0:02:59.2]} 3... Nf6 {[%clk 0:02:57.1]}
4. Bd3 {[%clk 0:02:58.1]} 4... Be7 {[%clk 0:02:56.5]} 5. Nf3 {[%clk 0:02:56.2]}
5... dxe4 {[%clk 0:02:53.5]} 6. Nxe4 {[%clk 0:02:55.5]} 6... O-O {[%clk
0:02:52.6]} 7. Bf4 {[%clk 0:02:47.6]} 7... Bd7 {[%clk 0:02:50.9]} 8. Qe2 {[%clk
0:02:41.7]} 8... Bc6 {[%clk 0:02:50.7]} 9. O-O-O {[%clk 0:02:38.6]} 9... Qd5
{[%clk 0:02:42.2]} 10. Nxf6+ {[%clk 0:02:35.3]} 10... Bxf6 {[%clk 0:02:41.9]}
11. Kb1 {[%clk 0:02:31.8]} 11... Qd7 {[%clk 0:02:16.5]} 12. Ne5 {[%clk
0:02:29.5]} 12... Qd5 {[%clk 0:02:05.5]} 13. c4 {[%clk 0:02:08.2]} 13... Qxg2
{[%clk 0:01:53.4]} 14. Rhg1 {[%clk 0:02:07.5]} 14... Qh3 {[%clk 0:01:52.6]} 15.
Rg3 {[%clk 0:02:04]} 15... Qh4 {[%clk 0:01:21.9]} 16. Qe3 {[%clk 0:01:57.6]}
16... h6 {[%clk 0:00:53.9]} 17. Rh3 {[%clk 0:01:48.7]} 17... Bxe5 {[%clk
0:00:20.7]} 18. Rxh4 {[%clk 0:01:46]} 18... Bxf4 {[%clk 0:00:21.6]} 19. Qxf4
{[%clk 0:01:39.2]} 19... g5 {[%clk 0:00:21.4]} 20. Rg1 {[%clk 0:01:35.9]} 20...
Kh8 {[%clk 0:00:19.5]} 21. Qxg5 {[%clk 0:01:34.4]} 1-0

[Event "Late-Titled-Tuesday-Blitz-June-18-2024"]
[Site "Chess.com"]
[Date "2024.06.18"]
[Round "8"]
[White "nihalsarin"]
[Black "SpeedofLight0"]
[Result "1-0"]
[WhiteElo "3201"]
[BlackElo "3034"]
[TimeControl "180+1"]
[EndTime "15:27:05 PDT"]
[Termination "nihalsarin won by resignation"]

1. d4 {[%clk 0:02:54.5]} 1... d5 {[%clk 0:02:55.2]} 2. c4 {[%clk 0:02:54.9]}
2... c6 {[%clk 0:02:55.1]} 3. Nf3 {[%clk 0:02:54.2]} 3... Nf6 {[%clk 0:02:55.1]}
4. Qc2 {[%clk 0:02:53.1]} 4... e6 {[%clk 0:02:52]} 5. Nbd2 {[%clk 0:02:50.9]}
5... Nbd7 {[%clk 0:02:50.7]} 6. g3 {[%clk 0:02:48.4]} 6... Be7 {[%clk
0:02:46.9]} 7. Bg2 {[%clk 0:02:48.8]} 7... O-O {[%clk 0:02:47.3]} 8. O-O {[%clk
0:02:49.4]} 8... b6 {[%clk 0:02:47.9]} 9. e4 {[%clk 0:02:49.1]} 9... Ba6 {[%clk
0:02:38.5]} 10. Re1 {[%clk 0:02:34.8]} 10... dxe4 {[%clk 0:02:33]} 11. Nxe4
{[%clk 0:02:25.8]} 11... Nxe4 {[%clk 0:02:32.6]} 12. Rxe4 {[%clk 0:02:26.7]}
12... Nf6 {[%clk 0:02:24.2]} 13. Re1 {[%clk 0:02:26.6]} 13... Rc8 {[%clk
0:02:18.6]} 14. b3 {[%clk 0:02:17.1]} 14... c5 {[%clk 0:02:16.3]} 15. Bb2 {[%clk
0:02:16.9]} 15... Bb7 {[%clk 0:02:16.3]} 16. Rad1 {[%clk 0:02:14.8]} 16... Qc7
{[%clk 0:02:15.1]} 17. Qe2 {[%clk 0:02:09.3]} 17... Rfd8 {[%clk 0:02:12.7]} 18.
d5 {[%clk 0:02:08.1]} 18... Re8 {[%clk 0:01:57]} 19. dxe6 {[%clk 0:01:58.1]}
19... Bd8 {[%clk 0:01:57.3]} 20. Bxf6 {[%clk 0:01:08.4]} 20... gxf6 {[%clk
0:00:42.3]} 21. Rd7 {[%clk 0:01:04.2]} 21... Bxf3 {[%clk 0:00:41.2]} 22. exf7+
{[%clk 0:01:02.7]} 1-0

[Event "Late-Titled-Tuesday-Blitz-June-18-2024"]
[Site "Chess.com"]
[Date "2024.06.18"]
[Round "8"]
[White "noblerone"]
[Black "monomita"]
[Result "0-1"]
[WhiteElo "2524"]
[BlackElo "2754"]
[TimeControl "180+1"]
[EndTime "15:27:15 PDT"]
[Termination "monomita won by resignation"]

1. d4 {[%clk 0:03:00.9]} 1... e6 {[%clk 0:03:00.9]} 2. Nf3 {[%clk 0:03:01.3]}
2... c5 {[%clk 0:03:00.2]} 3. e3 {[%clk 0:03:01]} 3... b6 {[%clk 0:03:00.2]} 4.
Bd3 {[%clk 0:03:01]} 4... Bb7 {[%clk 0:03:00.8]} 5. O-O {[%clk 0:03:01.6]} 5...
g5 {[%clk 0:03:01.2]} 6. b3 {[%clk 0:03:02.2]} 6... g4 {[%clk 0:02:59.7]} 7.
Nfd2 {[%clk 0:03:02.7]} 7... h5 {[%clk 0:02:57.6]} 8. Be4 {[%clk 0:03:02.7]}
8... Nc6 {[%clk 0:02:53.2]} 9. d5 {[%clk 0:02:58]} 9... exd5 {[%clk 0:02:26.8]}
10. Bxd5 {[%clk 0:02:58.2]} 10... Bg7 {[%clk 0:02:26.8]} 11. c3 {[%clk
0:02:48.8]} 11... Qe7 {[%clk 0:02:25.2]} 12. Bb2 {[%clk 0:02:42]} 12... O-O-O
{[%clk 0:02:25.1]} 13. Na3 {[%clk 0:02:40.2]} 13... h4 {[%clk 0:02:22.1]} 14.
Nb5 {[%clk 0:02:21.4]} 14... g3 {[%clk 0:02:17.1]} 15. Nc4 {[%clk 0:01:59.3]}
15... Kb8 {[%clk 0:02:04.4]} 16. e4 {[%clk 0:01:39.9]} 16... Nf6 {[%clk
0:01:51]} 17. Nbd6 {[%clk 0:01:38.9]} 17... Nxd5 {[%clk 0:01:32.8]} 18. exd5
{[%clk 0:01:37.2]} 18... Ne5 {[%clk 0:01:30.7]} 19. Re1 {[%clk 0:01:22.8]} 19...
gxf2+ {[%clk 0:01:27]} 20. Kxf2 {[%clk 0:01:20.8]} 20... h3 {[%clk 0:01:18]} 21.
Nxb7 {[%clk 0:01:09.8]} 21... Qh4+ {[%clk 0:01:00.6]} 22. Kg1 {[%clk 0:01:07.4]}
22... hxg2 {[%clk 0:00:58.7]} 23. Nxe5 {[%clk 0:00:42.2]} 23... Qxh2+ {[%clk
0:00:57.7]} 0-1